bitfinex-derivatives/quotes_ETHF0:USTF0_20251203
["timestamp","ask_amount","ask_price","bid_price","bid_amount"]
[1764755417161,35.27534641,3055.4,3055.3,10.37094614]
[1764755417464,34.90680641,3055.4,3055.3,10.37094614]
[1764755417863,26.10586749,3055.4,3055.3,10.37094614]
[1764755418164,25.28252749,3055.4,3055.3,10.37094614]
[1764755419364,24.43993749,3055.4,3055.3,10.37094614]
[1764755419970,23.99442749,3055.4,3055.3,10.37094614]
[1764755420161,23.57936749,3055.4,3055.3,10.37094614]
[1764755420661,22.67177749,3055.4,3055.3,10.37094614]
[1764755421770,22.30286749,3055.4,3055.3,10.37094614]
[1764755421965,21.91690749,3055.4,3055.3,10.37094614]
[1764755423866,21.54725749,3055.4,3055.3,10.37094614]
[1764755424073,21.18434749,3055.4,3055.3,10.37094614]
[1764755424675,22.77794749,3055.4,3055.3,10.37094614]
[1764755425068,22.77794749,3055.4,3055.3,8.80184614]
[1764755425276,22.77794749,3055.4,3055.3,6.29734995]
[1764755425469,22.77794749,3055.4,3055.3,7.07314995]
[1764755425670,22.77794749,3055.4,3055.3,7.86644995]
[1764755426476,22.77794749,3055.4,3055.3,7.07314995]
[1764755426671,22.77794749,3055.4,3055.3,6.29734995]
[1764755426976,22.77794749,3055.4,3055.3,3.37142]
[1764755427472,22.77794749,3055.4,3055.3,4.94052]
[1764755427977,22.77794749,3055.4,3055.3,4.14722]
[1764755428176,22.77794749,3055.4,3055.3,3.37142]
[1764755429180,22.77794749,3055.4,3055.3,5.3253769]
[1764755429375,22.77794749,3055.4,3055.3,6.1186769]
[1764755430777,22.77794749,3055.4,3055.3,5.3253769]
[1764755430970,22.77794749,3055.4,3055.3,4.5495769]
[1764755431170,22.77794749,3055.4,3055.3,3.37142]
[1764755432373,22.77794749,3055.4,3055.3,6.29914403]
[1764755434780,22.77794749,3055.4,3055.3,3.37142]
[1764755437980,22.77794749,3055.4,3055.3,4.61782]
[1764755438177,22.77794749,3055.4,3055.3,6.5375769]
[1764755438782,22.77794749,3055.4,3055.3,5.7959769]
[1764755439083,22.77794749,3055.4,3055.3,3.37142]
[1764755439788,22.77794749,3055.4,3055.3,4.61782]
[1764755440283,22.77794749,3055.4,3055.3,5.35942]
[1764755440484,22.77794749,3055.4,3055.3,4.61782]
[1764755441381,22.77794749,3055.4,3055.3,3.37142]
[1764755441885,22.77794749,3055.4,3055.3,5.7959769]
[1764755442985,22.77794749,3055.4,3055.3,6.9915769]
[1764755443286,22.77794749,3055.4,3055.3,5.7959769]
[1764755443583,22.77794749,3055.4,3055.3,4.5495769]
[1764755443784,22.77794749,3055.4,3055.3,3.37142]
[1764755446788,21.98324749,3055.4,3055.3,6.9864769]
[1764755447284,23.17954749,3055.4,3055.3,6.9864769]
[1764755448385,20.84036749,3055.4,3055.3,14.21798251]
[1764755448587,20.06895749,3055.4,3055.3,11.29025848]
[1764755448887,19.70533749,3055.4,3055.3,11.29025848]
[1764755449086,18.96063749,3055.4,3055.3,11.29025848]
[1764755449487,18.48396749,3055.4,3055.3,11.29025848]
[1764755451592,20.88546749,3055.4,3055.3,11.29025848]
[1764755452381,20.88546749,3055.4,3055.3,10.09465848]
[1764755452785,20.88546749,3055.4,3055.3,11.29025848]
[1764755455992,20.88546749,3055.4,3055.3,8.08245848]
[1764755456289,20.88546749,3055.4,3055.3,11.29025848]
[1764755456489,20.88546749,3055.4,3055.3,10.09465848]
[1764755456691,20.88546749,3055.4,3055.3,11.29025848]
[1764755456889,20.88546749,3055.4,3055.3,10.09465848]
[1764755457084,18.14886749,3055.4,3055.3,11.29025848]
[1764755457290,17.46319749,3055.4,3055.3,11.29025848]
[1764755457483,17.12046749,3055.4,3055.3,11.29025848]
[1764755457690,16.77409749,3055.4,3055.3,11.29025848]
[1764755457990,16.43280749,3055.4,3055.3,11.29025848]
[1764755458195,16.10096749,3055.4,3055.3,11.29025848]
[1764755458492,15.76729749,3055.4,3055.3,11.29025848]
[1764755459189,18.16879749,3055.4,3055.3,11.29025848]
[1764755459593,18.16879749,3055.4,3055.3,5.80832]
[1764755459892,18.16879749,3055.4,3055.3,3.37142]
[1764755460092,18.16879749,3055.4,3055.3,4.5495769]
[1764755460396,18.16879749,3055.4,3055.3,5.7908769]
[1764755460889,18.16879749,3055.4,3055.3,4.5495769]
[1764755463593,18.16879749,3055.4,3055.3,1.3417769]
[1764755463796,18.16879749,3055.4,3055.3,4.5495769]
[1764755463990,18.16879749,3055.4,3055.3,5.7908769]
[1764755464298,15.76729749,3055.4,3055.3,14.14667439]
[1764755464485,15.43238749,3055.4,3055.3,11.1897266]
[1764755465295,15.43238749,3055.4,3055.3,15.28854024]
[1764755466290,14.67184749,3055.4,3055.3,15.28854024]
[1764755467093,13.96273749,3055.4,3055.3,15.28854024]
[1764755467396,9.18632863,3055.4,3055.3,15.28854024]
[1764755467595,8.82506863,3055.4,3055.3,15.28854024]
[1764755467895,8.82506863,3055.4,3055.3,11.1897266]
[1764755468196,8.45915863,3055.4,3055.3,15.28335581]
[1764755468396,8.09594863,3055.4,3055.3,15.28335581]
[1764755468897,7.74489863,3055.4,3055.3,15.28335581]
[1764755469195,7.39646863,3055.4,3055.3,15.28335581]
[1764755471596,7.39646863,3055.4,3055.3,12.07555581]
[1764755471802,7.39646863,3055.4,3055.3,15.28335581]
[1764755473597,2.30769928,3055.4,3055.3,15.28335581]
[1764755473996,4.87149928,3055.4,3055.3,15.28335581]
[1764755474197,3.71229928,3055.4,3055.3,15.28335581]
[1764755474395,4.87149928,3055.4,3055.3,15.28335581]
[1764755474601,3.71229928,3055.4,3055.3,15.28335581]
[1764755475393,4.87149928,3055.4,3055.3,14.13005581]
[1764755475700,4.87149928,3055.4,3055.3,8.7951266]
[1764755475897,4.87149928,3055.4,3055.3,4.52265619]
[1764755476098,4.87149928,3055.4,3055.3,7.44711439]
[1764755478608,4.87149928,3055.4,3055.3,6.2958782]
[1764755478799,4.87149928,3055.4,3055.3,3.37142]
[1764755480202,3.71229928,3055.4,3055.3,11.36141991]
[1764755480395,4.87149928,3055.4,3055.3,11.36141991]
[1764755480595,4.87149928,3055.4,3055.3,3.37142]
[1764755480997,4.87149928,3055.4,3055.3,5.87932]
[1764755482402,2.30769928,3055.4,3055.3,5.87932]
[1764755482603,4.87149928,3055.4,3055.3,5.87932]
[1764755482806,4.87149928,3055.4,3055.3,4.72602]
[1764755483405,4.87149928,3055.4,3055.3,5.87932]
[1764755484600,3.71229928,3055.4,3055.3,5.87932]
[1764755485008,4.87149928,3055.4,3055.3,3.37142]
[1764755485200,2.5638,3055.3,3055.2,2.3405771]
[1764755485399,1.8676,3055.2,3055.1,2.3405771]
[1764755487102,2.30769928,3055.4,3055.0,0.16363]
[1764755487103,1.8676,3055.1,3055.0,0.16363]
[1764755494613,0.9338,3055.1,3055.0,4.16473]
[1764755494914,2.3493,3055.1,3055.0,4.16473]
[1764755495112,2.3493,3055.1,3055.0,0.16363]
[1764755496209,3.50053619,3055.1,3055.0,1.33100884]
[1764755496910,3.50053619,3055.1,3055.0,8.84e-06]
[1764755497611,3.1042,3054.9,3054.8,1.75561638]
[1764755502815,1.6887,3054.9,3054.8,5.49995638]
[1764755503220,1.6887,3054.9,3054.8,3.74925087]
[1764755503517,1.6629,3055.3,3055.2,4.2448]
[1764755503717,3.3258,3055.3,3055.2,8.60383619]
[1764755504013,3.3258,3055.3,3055.2,10.35392172]
[1764755504219,3.3258,3055.3,3055.2,8.60383619]
[1764755504419,3.3258,3055.3,3055.2,8.76745619]
[1764755505520,1.6629,3055.3,3055.2,8.76745619]
[1764755505716,2.30769928,3055.4,3055.3,4.40842]
[1764755506113,3.97059928,3055.4,3055.3,4.40842]
[1764755509017,2.30769928,3055.4,3055.3,4.40842]
[1764755510624,3.97059928,3055.4,3055.3,4.40842]
[1764755512720,2.30769928,3055.4,3055.3,4.40842]
[1764755514123,3.2078,3056.8,3056.0,1.38758]
[1764755514326,4.1125,3056.1,3056.0,8.84018]
[1764755515127,4.11482826,3056.1,3056.0,8.84439705]
[1764755516724,4.11482826,3056.1,3056.0,6.72429705]
[1764755518829,4.11482826,3056.1,3056.0,8.84439705]
[1764755519142,4.11482826,3056.1,3056.0,8.47221677]
[1764755520735,4.11482826,3056.1,3056.0,5.12351677]
[1764755521241,4.11482826,3056.1,3056.0,0.16779705]
[1764755521440,4.11482826,3056.1,3056.0,8.84439705]
[1764755521642,4.11482826,3056.1,3056.0,10.59231677]
[1764755521845,2.15302826,3056.1,3056.0,10.59231677]
[1764755522034,4.11482826,3056.1,3056.0,10.59231677]
[1764755522237,4.11482826,3056.1,3056.0,7.24821677]
[1764755522637,4.11482826,3056.1,3056.0,9.36831677]
[1764755522841,4.11482826,3056.1,3056.0,10.59231677]
[1764755523048,2.15302826,3056.1,3056.0,8.84439705]
[1764755523745,4.17102826,3056.1,3056.0,10.59145367]
[1764755524047,2.15302826,3056.1,3056.0,10.59197376]
[1764755524656,2.15302826,3056.1,3056.0,7.38417376]
[1764755524840,2.15302826,3056.1,3056.0,10.59197376]
[1764755525536,4.17102826,3056.1,3056.0,5.12317376]
[1764755526649,4.17102826,3056.1,3056.0,1.91537376]
[1764755526852,4.17102826,3056.1,3056.0,0.16779705]
[1764755528845,4.17102826,3056.1,3056.0,2.29289705]
[1764755529350,4.17102826,3056.1,3056.0,1.91537376]
[1764755530644,4.17102826,3056.1,3056.0,4.04047376]
[1764755530946,7.2195,3058.0,3057.5,1.2456]
[1764755531250,4.0117,3057.6,3057.5,6.45625206]
[1764755531445,4.5491,3057.5,3057.4,1.74948418]
[1764755531750,4.5491,3057.5,3057.4,0.00491087]
[1764755531940,4.55173829,3057.5,3057.4,0.00491087]
[1764755532141,4.01433829,3057.5,3057.4,15.28611087]
[1764755532852,4.01433829,3057.5,3057.4,13.16301087]
[1764755533451,4.01433829,3057.5,3057.4,15.28611087]
[1764755534142,5.26253829,3057.5,3057.4,11.03791087]
[1764755534347,5.26253829,3057.5,3057.4,0.00491087]
[1764755536554,4.0117,3056.7,3056.6,2.1251]
[1764755537056,4.0117,3056.7,3056.6,15.0461]
[1764755537252,4.0117,3056.7,3056.6,2.1251]
[1764755537452,1.9937,3056.5,3056.4,1.90813331]
[1764755537754,4.0117,3056.5,3056.4,7.99156]
[1764755537947,4.0117,3056.5,3056.4,10.11666]
[1764755538144,1.9937,3056.5,3056.4,12.23976]
[1764755538455,4.0117,3056.6,3056.5,5.4938]
[1764755539353,0.00491087,3056.8,3056.4,4.03323331]
[1764755539354,4.0117,3056.5,3056.4,4.03323331]
[1764755539553,4.0117,3056.5,3056.4,13.08356]
[1764755539757,4.0117,3056.5,3056.4,15.20866]
[1764755540355,4.0117,3056.5,3056.4,16.95323331]
[1764755541045,4.0117,3056.5,3056.4,19.07633331]
[1764755541647,4.0117,3056.5,3056.4,14.82613331]
[1764755541851,5.0834,3056.5,3056.4,14.82613331]
[1764755542552,4.0117,3056.5,3056.4,14.82613331]
[1764755542753,4.0117,3056.5,3056.4,19.07433331]
[1764755543054,4.0117,3056.5,3056.4,16.95123331]
[1764755543957,4.4593,3056.5,3056.4,1.74457331]
[1764755544259,4.0117,3056.2,3056.1,0.00491087]
[1764755548872,3.2078,3056.5,3056.3,0.16356]
[1764755549157,7.6671,3056.5,3056.4,0.16356]
[1764755549351,4.0117,3056.2,3056.1,4.25311087]
[1764755549549,4.0117,3056.2,3056.1,2.13001087]
[1764755549955,4.0117,3056.2,3056.1,2.29358087]
[1764755550260,4.0117,3056.2,3056.1,0.16848087]
[1764755551853,0.00491087,3056.8,3056.7,4.2482]
[1764755551854,4.01661087,3056.8,3056.7,4.2482]
[1764755552668,0.00491087,3056.8,3056.7,4.2482]
[1764755552855,1.99861087,3056.8,3056.7,4.2482]
[1764755553051,7.0893,3057.4,3057.3,1.8417]
[1764755553463,7.0893,3057.4,3057.1,3.00504664]
[1764755553464,3.8815,3057.2,3057.1,3.00504664]
[1764755554051,3.8815,3057.2,3057.1,5.04964664]
[1764755554259,3.8815,3057.2,3057.1,1.16334664]
[1764755554566,3.8815,3057.2,3057.1,3.00504664]
[1764755555367,3.8815,3057.2,3057.1,1.16334664]
[1764755555669,3.8815,3057.2,3057.1,3.00504664]
[1764755556567,3.8815,3057.2,3057.1,15.94904664]
[1764755557967,0.00263829,3057.5,3057.3,3.8863]
[1764755558266,0.00263829,3057.5,3057.4,20.2006]
[1764755558465,0.00263829,3057.5,3057.4,16.9928]
[1764755558655,0.00263829,3057.5,3057.4,20.2006]
[1764755560270,3.8815,3058.5,3058.4,3.8863]
[1764755560471,3.8815,3058.5,3058.4,14.8077]
[1764755560970,3.8815,3058.5,3058.4,12.966]
[1764755561172,3.88381075,3058.5,3058.4,12.96952398]
[1764755561365,4.34171075,3058.5,3058.4,0.00352398]
[1764755561762,3.6035,3058.1,3058.0,3.2078]
[1764755561964,3.6035,3058.1,3057.8,9.465]
[1764755561965,3.6035,3057.9,3057.8,9.465]
[1764755562363,3.6035,3057.9,3057.8,11.324]
[1764755562875,3.6035,3057.9,3057.8,11.32683792]
[1764755563482,3.6035,3057.9,3057.8,9.46783792]
[1764755567479,3.6035,3057.9,3057.8,0.00283792]
[1764755567674,9.6035,3057.9,3057.8,0.00283792]
[1764755567881,3.6035,3057.6,3057.5,0.00491087]
[1764755568281,3.6035,3057.6,3057.5,1.86391087]
[1764755568578,1.7381,3057.6,3057.5,4.71111087]
[1764755568776,3.6035,3057.6,3057.5,2.9262576]
[1764755569080,3.6035,3057.6,3057.5,0.0077576]
[1764755574088,3.6035,3057.6,3057.5,1.8667576]
[1764755574281,1.74301087,3058.2,3058.1,3.6467]
[1764755574483,3.60841087,3058.2,3058.1,4.8233302]
[1764755574686,3.60841087,3058.2,3058.1,3.6467]
[1764755574981,1.74301087,3058.2,3058.1,3.6467]
[1764755575178,3.60841087,3058.2,3058.1,3.6467]
[1764755575484,0.00491087,3058.2,3058.1,3.6467]
[1764755575877,1.74301087,3058.2,3058.1,3.6467]
[1764755576478,3.60841087,3058.2,3058.1,3.6467]
[1764755576676,0.00491087,3058.2,3058.1,3.6467]
[1764755576875,0.00207295,3058.2,3058.1,14.52117]
[1764755577078,0.00207295,3058.2,3058.1,15.68231265]
[1764755577286,1.74017295,3058.2,3058.1,14.52117]
[1764755577483,1.74017295,3058.2,3058.1,15.68283461]
[1764755577779,0.00207295,3058.2,3058.1,16.26348985]
[1764755579379,3.2078,3059.5,3058.9,3.81012]
[1764755579579,2.34691747,3060.4,3058.9,3.81012]
[1764755579580,3.6035,3060.1,3059.7,0.16338]
[1764755579890,3.6035,3059.9,3059.8,16.6797]
[1764755580185,2.8342881,3061.5,3059.8,3.6467]
[1764755580390,1.0741,3061.5,3060.1,0.00490276]
[1764755580586,1.7381,3060.2,3060.1,3.65582227]
[1764755580791,3.6035,3060.2,3060.1,0.00912227]
[1764755581789,9.6035,3060.2,3060.1,0.00912227]
[1764755581988,3.6035,3059.7,3059.6,3.2078]
[1764755582692,3.6035,3059.4,3059.3,1.16219219]
[1764755582894,3.6035,3059.3,3059.2,5.0668]
[1764755583098,3.5332,3059.3,3059.2,3.21107009]
[1764755583303,3.5332,3059.3,3059.2,0.00327009]
[1764755594513,3.4543,3059.1,3059.0,0.00490276]
[1764755594811,6.6621,3059.1,3059.0,0.00490276]
[1764755595413,6.6621,3059.1,3059.0,0.00868618]
[1764755595809,6.6621,3059.1,3059.0,1.61398618]
[1764755596001,6.6621,3059.1,3059.0,2.58618618]
[1764755596205,6.6621,3059.1,3059.0,4.33448618]
[1764755596917,6.6621,3059.1,3059.0,0.00868618]
[1764755597614,6.6621,3059.1,3059.0,1.61398618]
[1764755597815,6.6621,3059.1,3059.0,4.33448618]
[1764755598818,3.2078,3059.1,3059.0,4.33448618]
[1764755599503,4.867,3059.1,3059.0,4.33448618]
[1764755599703,6.6621,3059.1,3059.0,4.33448618]
[1764755600419,6.6621,3059.1,3059.0,0.00868618]
[1764755608619,3.2078,3059.5,3059.0,4.12658618]
[1764755608823,3.2078,3059.5,3059.4,3.3737]
[1764755609022,6.461,3059.5,3059.4,0.1634]
[1764755609218,3.2532,3059.5,3059.4,0.1634]
[1764755609415,3.2532,3059.5,3059.4,1.8078]
[1764755609721,3.2532,3059.5,3059.4,3.3737]
[1764755611025,0.00487574,3059.7,3059.6,3.2103]
[1764755611425,0.00487574,3059.7,3059.6,4.95358829]
[1764755611923,1.61897574,3059.7,3059.6,4.95358829]
[1764755612117,0.00487574,3059.7,3059.6,5.11697829]
[1764755612422,1.61897574,3059.7,3059.6,5.12189459]
[1764755612622,0.00487574,3059.7,3059.6,5.12189459]
[1764755612820,3.2078,3060.2,3060.1,3.2103]
[1764755613020,3.2078,3060.2,3060.0,0.9467]
[1764755613021,3.1793,3060.1,3060.0,7.3407]
[1764755613325,6.3871,3060.7,3060.0,5.9005431]
[1764755613521,1.5565,3060.3,3060.2,3.1862]
[1764755613930,3.2078,3060.7,3060.2,3.1862]
[1764755614126,1.5565,3060.4,3060.3,4.35011643]
[1764755614327,1.5565,3060.4,3060.3,3.1862]
[1764755614827,3.1793,3060.4,3060.3,3.1862]
[1764755615030,1.5565,3060.4,3060.3,3.1862]
[1764755615323,3.2078,3060.7,3060.2,1.16391643]
[1764755615324,3.2078,3060.7,3060.6,3.1862]
[1764755615534,6.3871,3060.7,3060.6,3.1862]
[1764755616435,3.1793,3060.6,3060.5,2.451]
[1764755616643,1.5565,3060.6,3060.5,4.1044]
[1764755617127,3.2078,3060.7,3060.6,3.1862]
[1764755617332,3.18290867,3061.0,3060.9,1.5328]
[1764755617828,3.1793,3060.7,3060.6,4.74550276]
[1764755618027,3.1793,3060.7,3060.6,3.21270276]
[1764755618729,3.1793,3060.7,3060.6,0.00490276]
[1764755619037,6.3871,3060.7,3060.6,0.00490276]
[1764755621226,6.3871,3060.7,3059.9,4.51348643]
[1764755621227,3.1793,3060.0,3059.9,4.51348643]
[1764755621426,1.5565,3060.0,3059.9,3.34957]
[1764755621629,3.1793,3059.9,3059.8,1.5328]
[1764755622924,3.1793,3059.9,3059.6,3.2078]
[1764755623133,0.00490276,3060.2,3059.6,6.2335]
[1764755623430,3.0036,3059.7,3059.6,6.2335]
[1764755623730,3.0036,3059.7,3059.6,4.7367]
[1764755624123,3.0036,3059.7,3059.6,6.2335]
[1764755624426,3.0036,3059.7,3059.6,4.7367]
[1764755625032,3.0036,3059.7,3059.6,3.2078]
[1764755626531,3.0036,3059.7,3059.6,6.2335]
[1764755627637,3.0036,3059.7,3059.6,3.0257]
[1764755628533,3.0036,3059.7,3059.6,1.5289]
[1764755628734,3.0036,3059.6,3059.5,0.91070276]
[1764755628930,3.0036,3059.6,3059.5,1.53380276]
[1764755629128,3.0036,3059.6,3059.5,4.09979276]
[1764755629332,1.4863,3059.6,3059.5,7.30759276]
[1764755629834,6.2114,3059.9,3059.8,3.0257]
[1764755630029,3.0036,3059.6,3059.5,2.60299276]
[1764755630233,3.0036,3059.6,3059.5,0.16829276]
[1764755630432,3.0036,3059.6,3059.5,4.09979276]
[1764755630629,3.0036,3059.6,3059.5,2.60299276]
[1764755630831,3.0036,3059.6,3059.5,0.16829276]
[1764755631936,3.0036,3059.6,3059.5,0.00490276]
[1764755633237,3.0036,3059.6,3059.5,2.43960276]
[1764755633428,3.0036,3059.6,3059.5,0.91070276]
[1764755634126,3.0036,3059.6,3059.5,0.00490276]
[1764755635839,3.0036,3059.2,3059.1,3.2078]
[1764755636030,3.0036,3059.1,3059.0,1.53268342]
[1764755636640,3.0036,3059.1,3059.0,0.00378342]
[1764755640543,6.2114,3059.1,3059.0,0.00378342]
[1764755643641,2.8241,3059.1,3059.0,3.78278342]
[1764755644438,6.0319,3059.5,3059.4,1.4071]
[1764755644639,3.2078,3059.5,3059.4,3.0042]
[1764755644841,2.8241,3059.6,3059.5,2.2235]
[1764755645042,2.8241,3059.6,3059.5,6.865]
[1764755645242,2.8241,3059.6,3059.5,3.6572]
[1764755645443,1.4158,3059.6,3059.5,3.6572]
[1764755645946,2.8241,3059.6,3059.5,3.6572]
[1764755646445,3.2078,3059.9,3059.4,1.15987239]
[1764755646446,2.8241,3059.5,3059.4,4.00067239]
[1764755646833,2.8241,3059.5,3059.4,2.56697239]
[1764755647146,3.2078,3059.9,3059.2,0.1634]
[1764755647147,2.8241,3059.3,3059.2,0.1634]
[1764755647447,4.6161,3059.3,3059.2,1.4071]
[1764755647641,2.8241,3059.2,3059.1,2.56697239]
[1764755647840,2.8241,3059.1,3059.0,1.98005581]
[1764755648137,2.8241,3058.8,3058.7,0.00490276]
[1764755649136,2.82731052,3058.8,3058.7,0.00756959]
[1764755650341,2.82731052,3058.8,3058.7,1.41466959]
[1764755651349,2.82731052,3058.8,3058.7,2.84836959]
[1764755651647,2.82731052,3058.8,3058.7,0.00756959]
[1764755652438,2.8241,3058.4,3058.3,1.15987239]
[1764755652741,2.8241,3058.3,3058.2,4.36767239]
[1764755653239,2.8241,3058.3,3058.2,3.2078]
[1764755653434,2.8241,3058.3,3058.2,3.21166805]
[1764755655749,2.8241,3058.3,3058.2,0.00386805]
[1764755655949,3.5578,3058.0,3057.9,0.00490276]
[1764755656148,6.0319,3058.0,3057.9,0.00490276]
[1764755657047,6.0319,3058.0,3057.9,0.00764487]
[1764755658554,3.2078,3058.0,3057.3,4.16418239]
[1764755659247,6.0319,3058.0,3057.9,1.4071]
[1764755659448,6.0319,3058.0,3057.9,1.40995199]
[1764755659648,6.0319,3058.0,3057.9,0.00285199]
[1764755662451,6.0319,3058.0,3057.9,1.40995199]
[1764755663453,6.0319,3058.0,3057.9,0.00285199]
[1764755663950,6.0319,3058.0,3057.9,1.40995199]
[1764755664153,6.0319,3058.0,3057.9,2.84365199]
[1764755664553,3.2078,3058.0,3057.9,2.84365199]
[1764755664745,40.8,3058.4,3058.3,2.8408]
[1764755664746,3.2078,3058.4,3058.3,2.8408]
[1764755665352,1.42070276,3058.6,3058.5,3.6572]
[1764755666351,0.00490276,3058.6,3058.5,3.6572]
[1764755667256,0.00490276,3058.6,3058.5,3.82064]
[1764755669858,0.00490276,3058.6,3058.5,4.98051239]
[1764755670953,0.00490276,3058.6,3058.5,3.82064]
[1764755671549,0.00490276,3058.6,3058.5,4.98328451]
[1764755674660,0.00490276,3058.6,3058.5,3.82064]
[1764755679672,2.72310276,3058.6,3058.5,3.82064]
[1764755679967,0.00490276,3058.6,3058.5,3.82064]
[1764755680869,2.5165,3058.9,3058.8,2.59543]
[1764755681667,0.00305324,3058.9,3058.8,2.59543]
[1764755682373,1.23845324,3058.9,3058.8,2.59543]
[1764755682768,2.51955324,3058.9,3058.8,2.59543]
[1764755683169,2.51955324,3058.9,3058.8,0.16343]
[1764755683371,2.5165,3058.6,3058.5,2.0014]
[1764755683874,2.5165,3058.6,3058.5,3.2484]
[1764755684878,2.5165,3058.6,3058.5,3.41184]
[1764755685074,3.21085324,3058.9,3058.5,3.41184]
[1764755685371,5.72735324,3058.9,3058.8,1.185]
[1764755686276,5.72735324,3058.9,3058.8,2.432]
[1764755686769,5.72735324,3058.9,3058.7,0.16343]
[1764755686978,2.5165,3058.8,3058.7,0.16343]
[1764755688176,2.5165,3058.8,3058.7,2.59543]
[1764755688375,2.5165,3058.8,3058.7,1.34843]
[1764755689775,2.5165,3058.8,3058.7,2.59543]
[1764755689981,2.5165,3058.8,3058.7,1.34843]
[1764755690375,2.5165,3058.8,3058.7,0.16343]
[1764755690575,2.5165,3058.6,3058.5,2.0014]
[1764755690776,2.5165,3058.6,3058.5,3.2484]
[1764755691179,2.5165,3058.6,3058.5,4.41272293]
[1764755691476,3.21085324,3058.9,3058.5,4.41272293]
[1764755691874,5.72735324,3058.9,3058.8,1.185]
[1764755692376,5.72735324,3058.9,3058.8,2.432]
[1764755693180,5.72735324,3058.9,3058.8,1.185]
[1764755694877,3.21085324,3058.9,3058.8,2.59543]
[1764755695276,5.72735324,3058.9,3058.8,4.3414731]
[1764755695469,4.44625324,3058.9,3058.8,4.3414731]
[1764755696277,3.21085324,3058.9,3058.8,4.3414731]
[1764755696983,0.00305324,3058.9,3058.8,4.3414731]
[1764755697185,0.00490276,3059.2,3059.1,2.59541]
[1764755697389,0.00490276,3059.2,3059.1,3.76262191]
[1764755697685,0.00490276,3059.2,3059.1,2.59541]
[1764755698185,5.73298528,3059.2,3059.1,2.51548946]
[1764755698679,1.24408528,3059.2,3059.1,4.34622787]
[1764755699192,0.00868528,3059.2,3059.1,2.59541]
[1764755700285,1.24408528,3059.2,3059.1,2.59541]
[1764755700484,0.00868528,3059.2,3059.1,2.59541]
[1764755702790,0.00868528,3059.2,3059.1,4.34622787]
[1764755703688,0.00868528,3059.2,3059.1,2.59541]
[1764755704083,2.15128528,3059.2,3059.1,2.59541]
[1764755704487,0.00868528,3059.2,3059.1,2.59541]
[1764755705692,0.00868528,3059.2,3059.1,4.34622787]
[1764755705990,1.07998528,3059.2,3059.1,4.34622787]
[1764755706192,0.00868528,3059.2,3059.1,2.59541]
[1764755707393,5.3678,3060.1,3060.0,1.7827]
[1764755708287,5.37168419,3060.1,3060.0,0.6525]
[1764755708892,2.16,3059.8,3059.7,0.00490276]
[1764755709389,2.16,3059.8,3059.7,1.13510276]
[1764755709693,1.08,3059.8,3059.7,2.31710276]
[1764755710495,2.16,3059.8,3059.7,2.31710276]
[1764755710795,3.30881083,3059.8,3059.7,0.00490276]
[1764755711091,2.16,3059.8,3059.7,0.00490276]
[1764755711295,3.30881083,3059.8,3059.7,0.00490276]
[1764755712184,2.16,3059.8,3059.7,0.00490276]
[1764755713885,2.16,3059.4,3059.3,0.1634]
[1764755714083,6.51661083,3059.4,3059.1,1.16472755]
[1764755714292,2.16,3059.1,3059.0,1.8834]
[1764755714593,5.3678,3059.4,3059.3,2.3122]
[1764755714791,4.2878,3059.4,3059.3,2.3122]
[1764755714990,5.3678,3059.4,3059.3,2.3122]
[1764755715598,4.2878,3059.4,3059.3,2.3122]
[1764755715788,3.2078,3059.4,3059.3,2.4756]
[1764755716094,3.2078,3059.4,3059.3,3.64032755]
[1764755716886,4.2878,3059.4,3059.3,3.64032755]
[1764755717600,5.3678,3059.4,3059.3,1.32812755]
[1764755717801,5.3678,3059.4,3059.3,2.45832755]
[1764755717993,5.3678,3059.4,3059.3,3.64032755]
[1764755718197,4.2878,3059.4,3059.3,3.64032755]
[1764755718596,5.3678,3059.4,3059.3,3.64032755]
[1764755718803,4.2878,3059.4,3059.3,3.64032755]
[1764755719002,3.2078,3059.4,3059.3,3.64032755]
[1764755719203,4.2878,3059.4,3059.3,3.64032755]
[1764755719803,3.2078,3059.4,3059.3,3.64032755]
[1764755720697,5.3678,3059.9,3059.8,1.182]
[1764755720895,5.3678,3059.9,3059.8,2.3122]
[1764755721502,4.2878,3059.9,3059.8,2.3122]
[1764755721707,5.3678,3059.9,3059.8,2.3122]
[1764755722404,5.3678,3059.9,3059.8,1.1302]
[1764755722603,1.08,3059.6,3059.5,4.29350375]
[1764755722803,2.16,3059.6,3059.5,3.11150375]
[1764755723004,2.16,3059.6,3059.5,4.29350375]
[1764755723204,1.08,3059.6,3059.5,3.12809]
[1764755723500,2.16,3059.6,3059.5,3.12809]
[1764755723800,2.16,3059.6,3059.5,1.32923292]
[1764755724002,2.16,3059.6,3059.5,0.16339]
[1764755725004,2.16,3059.3,3059.2,2.29604292]
[1764755725206,5.3678,3059.3,3059.2,2.29604292]
[1764755725404,5.3678,3059.3,3059.2,1.1302]
[1764755725803,5.3678,3059.3,3059.2,2.3122]
[1764755726806,5.3678,3059.3,3059.2,1.1302]
[1764755727105,5.3678,3059.3,3059.2,2.3122]
[1764755728907,4.2878,3059.3,3059.2,2.3122]
[1764755729707,4.2878,3059.3,3059.2,3.47804292]
[1764755730102,3.2078,3059.3,3059.2,3.47804292]
[1764755734715,4.2878,3059.3,3059.2,3.47804292]
[1764755736212,5.0323,3059.3,3059.2,3.47804292]
[1764755736516,1.489,3059.2,3059.1,1.16584292]
[1764755736905,0.7445,3059.2,3059.1,3.37274292]
[1764755737515,1.489,3059.2,3059.1,3.37274292]
[1764755740319,1.489,3059.2,3059.1,2.2069]
[1764755740821,1.4035,3059.1,3059.0,0.00490276]
[1764755741019,2.55231083,3059.1,3059.0,0.00490276]
[1764755741422,1.4035,3059.1,3059.0,1.60650276]
[1764755742220,1.4035,3059.1,3059.0,0.61590276]
[1764755742415,1.4035,3059.1,3059.0,1.60650276]
[1764755742616,1.4035,3059.1,3059.0,0.61590276]
[1764755742818,1.4035,3059.1,3059.0,1.60650276]
[1764755743820,1.4035,3059.1,3059.0,0.00490276]
[1764755744723,2.55231083,3059.1,3059.0,0.00490276]
[1764755746520,3.2078,3059.8,3059.5,0.611]
[1764755746726,1.14881083,3059.7,3059.1,0.9906]
[1764755746924,4.5258,3059.2,3059.0,1.78357505]
[1764755747126,0.659,3059.1,3059.0,3.75387505]